[Event "XTX Markets London Classic-Elite 2024"]
[Site "London"]
[Date "2024.12.02"]
[Round "4.4"]
[White "Mamedyarov, Shakhriyar"]
[Black "Hong, Andrew"]
[Result "1/2-1/2"]
[WhiteElo "2738"]
[BlackElo "2572"]
[Annotator "TA"]
[PlyCount "80"]
[EventDate "2024.??.??"]
[TimeControl "60"]

{[%evp 16,80,0,0,0,0,0,5,0,0,0,0,0,0,0,0,0,0,0,0,0,0,0,-26,-38,-18,0,0,0,0,0,0,0,0,0,0,0,0,0,0,0,0,0,0,0,0,0,0,0,0,0,0,0,0,0,0,0,0,0,0,0,0,0,0,0,0,0]} 1. d4 {[%emt 0:00:00]} d5 {[%emt 0:00:46]} 2. c4 {[%emt 0:00:00]} e6 {[%emt 0:00:30]} 3. Nc3 {[%emt 0:00:00]} c6 {[%emt 0:00:30]} 4. e4 {[%emt 0:00:00]} dxe4 {[%emt 0:00:30]} 5. Nxe4 {[%emt 0:00:00]} Bb4+ {[%emt 0:00:30]} 6. Bd2 {[%emt 0:00:11][%cal Bc1d2,Bd2b4,Bb4d6,Bd6e5][%mdl 32]} Qxd4 {[%emt 0:00:30]} 7. Bxb4 {[%emt 0:00:30]} Qxe4+ {[%emt 0:00:30]} 8. Be2 {[%emt 0:00:30]} Na6 {[%emt 0:00:30]} 9. Bd6 {[%emt 0:00:30] [#] Threatens to win with Nf3.} Qxg2 {[%emt 0:00:30]} 10. Qd2 {[%emt 0:00:30]} e5 {[%emt 0:00:30]} (10... Qxh1 11. O-O-O e5 12. Bxe5 $16) 11. O-O-O {[%emt 0:00:30][%cal Od6b8] Hoping for Bb8!} Qe4 $1 {[%emt 0:00:30][%cal Oc8f5]} (11... Qxh1 $2 12. Bxe5 f6 13. Bf3 $18) 12. Bxe5 {[%emt 0:00:30][%csl Gd1][%cal Rd2d8] A strong pair of Bishops.} Bf5 $1 {[%emt 0:00:30]} (12... Qxh1 13. Qd8#) 13. Bd3 {[%emt 0:00:30] Really sharp!} Qxd3 {[%emt 0:00:30]} (13... Qxe5 $2 14. Re1 $18) (13... Qxh1 $2 14. Bxf5 Nc5 15. Bxg7 $18) 14. Qxd3 {[%emt 0:00:30]} Bxd3 {[%emt 0:00:30]} 15. Bxg7 {[%emt 0:00:30]} Nb4 {[%emt 0:00:30][%cal Oe8c8]} 16. b3 $146 {[%emt 0:00:30]} ({RR} 16. a3 Na2+ 17. Kd2 O-O-O 18. Ke1 Re8+ 19. Kd2 Rd8 20. Ke1 Re8+ 21. Kd2 Rd8 22. Ke1 Re8+ {½-½ (22) O'Donnell,C (2303)-Godart,F (2407) Struga 2021}) ({RR} 16. Bxh8 Nxa2+ 17. Kd2 Bxc4 18. Nh3 Ne7 19. Kc2 Nd5 20. Rd4 Nab4+ 21. Kd2 b5 22. Re1+ Kd7 23. Be5 c5 24. Rh4 Rd8 25. Ng5 Ne7 26. Rxc4 bxc4 27. Bd6 Nf5 28. Nxf7 Nxd6 29. Nxd8 Kxd8 30. Re6 Nb5 {Donchenko,A (2676)-Ten Hertog,H (2525) Durres ALB 2023 ½-½ (34)}) 16... Be4 {[%emt 0:00:30]} (16... Nxa2+ $2 17. Kb2 Nb4 (17... Be4 $2 18. f3 $18) 18. Nh3 $18 (18. Bxh8 a5 $18)) 17. f3 {[%emt 0:00:30][%cal Of3e4]} Nd3+ {[%emt 0:00:30]} (17... Nxa2+ $2 {perishes.} 18. Kb2 Bf5 19. Kxa2 $18 (19. Bxh8 Nb4 $18)) (17... Ne7 {simplifies} 18. Bxh8 Nd3+ 19. Rxd3 Bxd3 20. Nh3 Bf5) 18. Kd2 $1 {[%emt 0:00:30]} Bg6 {[%emt 0:00:30][%cal Oe8c8] Strongly threatening ...0-0-0!} 19. Nh3 {[%emt 0:00:30] [#]} O-O-O $1 {[%emt 0:00:30]} 20. Kc3 {[%emt 0:00:30][%cal Oh1g1] Prevents Nb2} Nh6 {[%emt 0:00:30][%cal Ob7b5] And now ...b5! would win. The position is equal.} 21. Bxh8 {[%emt 0:00:30]} Rxh8 {[%emt 0:00:30]} 22. Rxd3 {[%emt 0:00:30]} Bxd3 {[%emt 0:00:30]} 23. Kxd3 $11 {[%emt 0:00:30][%mdl 4096] Endgame. KRN-KRN} Re8 {[%emt 0:00:30]} 24. Ng5 {[%emt 0:00:30]} Nf5 {[%emt 0:00:30]} 25. Ne4 {[%emt 0:00:30]} Rd8+ {[%emt 0:00:30]} 26. Ke2 {[%emt 0:00:30]} Rg8 {[%emt 0:00:30]} 27. Kf2 {[%emt 0:00:30] Repels Rg2+} Nh4 {[%emt 0:00:30]} 28. Ng3 {[%emt 0:00:30]} Rd8 {[%emt 0:00:30]} 29. Re1 {[%emt 0:00:30]} Rd2+ {[%emt 0:00:30]} 30. Re2 {[%emt 0:00:30]} Rd3 {[%emt 0:00:30]} 31. Re8+ {[%emt 0:00:30]} Kd7 {[%emt 0:00:30]} 32. Rb8 {[%emt 0:00:30]} Kc7 {[%emt 0:00:30]} ({Much worse is} 32... Rxf3+ 33. Ke2 $16) 33. Rh8 {[%emt 0:00:30]} Rxf3+ {[%emt 0:00:30]} (33... Nxf3 34. Rxh7 Ne5 35. Ne4) 34. Ke2 {[%emt 0:00:30]} Rf4 {[%emt 0:00:30]} 35. Rxh7 {[%emt 0:00:30]} Ng6 {[%emt 0:00:30]} 36. Ke3 {[%emt 0:00:30]} Kd7 {[%emt 0:00:30]} 37. h4 {[%emt 0:00:30] aiming for h5.} Rg4 $1 {[%emt 0:00:30]} 38. Ne4 {[%emt 0:00:30] Nf6+ is the strong threat.} Rxh4 {[%emt 0:00:30]} 39. Rxf7+ {[%emt 0:00:30]} Ne7 {[%emt 0:00:30]} 40. Rg7 {[%emt 0:00:30]} b6 {[%emt 0:00:30] A balanced but interesting game. Weighted Error Value: White=0.01 (flawless) /Black=0.01 (flawless) . Inaccurate: 	White=1 	--- OK: 	White=17 	Black=20 Best: 	White=3 	Black=1 Strong: 	White=1 	Black=3} 1/2-1/2

[Event "XTX Markets London Classic-Elite 2024"]
[Site "London"]
[Date "2024.12.03"]
[Round "5.1"]
[White "Hong, Andrew"]
[Black "Ju, Wenjun"]
[Result "1/2-1/2"]
[WhiteElo "2572"]
[BlackElo "2563"]
[Annotator "TA"]
[PlyCount "98"]
[EventDate "2024.??.??"]
[TimeControl "60"]

{[%evp 13,98,47,40,23,13,0,0,0,0,0,0,-1,0,0,0,0,6,6,30,4,13,-50,-50,-49,-52,-45,-26,-39,-2,-18,-16,-22,-9,-27,-23,-29,-27,-46,-30,-29,-20,-17,-13,-29,-3,-29,-11,-3,0,0,0,0,0,-14,-13,-16,0,0,0,0,0,0,0,0,0,-10,-9,-8,-3,-4,0,0,0,0,0,0,0,0,0,0,0,0,0,0,0,0,0]} 1. e4 {[%emt 0:00:11]} e5 {[%emt 0:00:07]} 2. Nf3 {[%emt 0:00:20]} Nc6 {[%emt 0:00:04]} 3. Bc4 {[%emt 0:00:32]} Nf6 {[%emt 0:00:09]} 4. d3 {[%emt 0:00:22]} Bc5 {[%emt 0:00:14]} 5. c3 {[%emt 0:00:26]} O-O {[%emt 0:00:20]} 6. O-O {[%emt 0:00:53]} d5 {[%emt 0:01:03]} 7. exd5 {[%emt 0:00:30]} Nxd5 {[%emt 0:00:04]} 8. a4 {[%emt 0:04:16]} Bf5 {[%emt 0:04:51]} 9. a5 {[%emt 0:10:00] Prevents Nb6} a6 $1 {[%emt 0:01:48]} 10. Re1 {[%emt 0:13:04]} Nf6 {[%emt 0:04:23]} 11. Bg5 {[%emt 0:05:56]} e4 {[%emt 0:17:16]} 12. dxe4 {[%emt 0:08:16]} Qxd1 {[%emt 0:00:25]} 13. Rxd1 {[%emt 0:00:05]} Nxe4 {[%emt 0:00:37]} 14. Bh4 {[%emt 0:00:32]} Rae8 $146 {[%emt 0:29:45]} ({RR} 14... Rfe8 15. Nbd2 Nxd2 16. Rxd2 Bd6 17. Bd5 Be4 18. Bxe4 Rxe4 19. Bg3 Bxg3 20. hxg3 Rae8 21. Kf1 f6 22. b4 Rc4 23. Rd3 Ne5 24. Nxe5 Rxe5 25. Re1 Kf7 26. Rxe5 fxe5 27. Rd8 Rxc3 28. Rb8 Ke6 29. Rxb7 {Lu,S (2602)-Inarkiev,E (2693) Douglas 2019 ½-½ (32)}) 15. Bd5 {[%emt 0:16:28]} g5 {[%emt 0:10:59]} 16. Bxe4 {[%emt 0:14:08]} Rxe4 {[%emt 0:00:52]} 17. Bxg5 {[%emt 0:00:30]} ({White should play} 17. Rd5 $1 $11 Ba7 18. Bxg5 (18. Nxg5 $2 Re1#)) 17... Re2 $15 {[%emt 0:00:57][%csl Bb2,Bf2]} 18. Nbd2 {[%emt 0:12:36]} Bxf2+ {[%emt 0:02:22] A strong pair of Bishops.} 19. Kh1 $1 {[%emt 0:00:20]} Rfe8 {[%emt 0:00:14]} 20. b4 {[%emt 0:01:24]} Kg7 {[%emt 0:12:19]} 21. Bf4 {[%emt 0:00:25]} R8e7 {[%emt 0:00:21] White is weak on the light squares} 22. Nf1 {[%emt 0:01:23]} Bg6 {[%emt 0:03:59]} 23. Rd2 {[%emt 0:00:59]} Rxd2 {[%emt 0:00:32]} 24. N1xd2 {[%emt 0:00:29]} f6 {[%emt 0:01:53]} 25. Rf1 {[%emt 0:03:44]} Ba7 {[%emt 0:00:05]} 26. h3 {[%emt 0:00:54]} Nd8 {[%emt 0:01:18]} 27. Bg3 {[%emt 0:02:43]} Rd7 {[%emt 0:02:42]} 28. Re1 {[%emt 0:00:46]} Kf7 {[%emt 0:00:34]} 29. Ne4 {[%emt 0:01:18]} Bxe4 {[%emt 0:02:15]} 30. Rxe4 {[%emt 0:00:04] The position is equal.} Ne6 {[%emt 0:00:03]} 31. Kh2 {[%emt 0:01:08]} c5 {[%emt 0:00:52]} 32. Rh4 {[%emt 0:00:53]} Kg6 {[%emt 0:00:04]} 33. Rc4 {[%emt 0:00:30]} cxb4 {[%emt 0:00:36]} 34. cxb4 {[%emt 0:00:20]} Nd4 {[%emt 0:00:22]} 35. Nh4+ {[%emt 0:00:45]} Kf7 {[%emt 0:00:05]} 36. Bf2 {[%emt 0:00:46]} Nf3+ {[%emt 0:00:44]} 37. Nxf3 {[%emt 0:00:24]} Bxf2 $11 {[%emt 0:00:02][%mdl 4096] Endgame. KRB-KRN} 38. Rc2 {[%emt 0:00:34]} Ba7 {[%emt 0:00:52]} 39. Kg3 {[%emt 0:00:15]} Bb8+ {[%emt 0:00:59]} 40. Kf2 {[%emt 0:00:42]} Rd5 {[%emt 0:00:58]} 41. Rc4 {[%emt 0:03:08]} Bd6 {[%emt 0:10:30]} 42. Nd4 {[%emt 0:00:50] Dodges Rb5} h5 {[%emt 0:01:19]} 43. g4 {[%emt 0:01:29]} hxg4 {[%emt 0:04:44]} 44. hxg4 {[%emt 0:00:05]} Ke8 {[%emt 0:00:05]} 45. Nf5 {[%emt 0:03:58]} Bf8 {[%emt 0:01:25]} 46. Rc8+ {[%emt 0:02:01]} Rd8 {[%emt 0:00:08]} 47. Rc7 {[%emt 0:06:38]} Rd7 {[%emt 0:00:08]} 48. Rc8+ {[%emt 0:02:57]} Rd8 {[%emt 0:05:09]} 49. Rc7 {[%emt 0:00:12]} Rd7 {[%emt 0:00:04] Weighted Error Value: White=0.07 (flawless) /Black=0.06 (flawless) . Mistake: 	White=1 	--- Inaccurate: 	White=2 	Black=2 OK: 	White=14 	Black=15 Best: 	White=1 	Black=2 Strong: 	White=1 	Black=1} 1/2-1/2

[Event "XTX Markets London Classic-Elite 2024"]
[Site "London"]
[Date "2024.12.03"]
[Round "5.2"]
[White "Jones, Gawain C B"]
[Black "Mamedyarov, Shakhriyar"]
[Result "1/2-1/2"]
[WhiteElo "2639"]
[BlackElo "2738"]
[Annotator "TA"]
[PlyCount "110"]
[EventDate "2024.??.??"]
[TimeControl "60"]

{[%evp 12,110,21,18,24,0,1,2,19,19,27,25,19,18,36,35,35,39,37,31,36,26,27,29,34,26,25,0,14,0,6,-27,-25,-81,-59,-80,-81,-74,-89,-89,-91,-81,-76,-82,-48,-78,-66,-46,-50,-65,-70,-93,-78,-141,-87,-169,-170,-176,-160,-254,-161,-169,-59,-54,-64,-63,-64,-64,-57,-60,-61,-60,-55,-67,-14,-14,-8,-8,-8,-8,-8,-8,0,0,0,-23,0,0,0,0,0,0,0,-16,-16,-22,0,0,0,0,0]} 1. Nf3 {[%emt 0:00:39]} d5 {[%emt 0:00:23]} 2. g3 {[%emt 0:00:17]} Nf6 {[%emt 0:00:44]} 3. Bg2 {[%emt 0:00:08]} e6 {[%emt 0:00:08]} 4. O-O {[%emt 0:01:06]} Be7 {[%emt 0:00:09]} 5. d4 {[%emt 0:00:11]} O-O {[%emt 0:00:06]} 6. c4 {[%emt 0:00:06]} c6 {[%emt 0:00:12]} 7. Nc3 {[%emt 0:00:39]} a5 {[%emt 0:00:39]} 8. Bf4 {[%emt 0:05:58]} dxc4 {[%emt 0:00:30]} 9. Ne5 {[%emt 0:00:09]} Nd5 {[%emt 0:00:09]} 10. Nxc4 {[%emt 0:00:10]} Nd7 {[%emt 0:00:19][%cal Bb8d7,Bd7f6,Bf6d5][%mdl 32]} 11. Rc1 {[%emt 0:04:35]} Nxf4 {[%emt 0:00:17]} 12. gxf4 {[%emt 0:00:06]} Nf6 {[%emt 0:00:03]} 13. e3 {[%emt 0:02:38]} Bd7 {[%emt 0:00:44]} ({RR} 13... Nd5 14. Kh1 Kh8 15. Ne4 a4 16. a3 Bd7 17. Qh5 Be8 18. Qh3 Rc8 19. Rg1 f5 20. Nc5 Rf6 21. Nxb7 Qc7 22. Nc5 Rh6 23. Nxe6 Rxe6 24. Qxf5 Rf6 25. Qd3 Qd8 26. Ne5 Rh6 27. Qf5 Rf6 28. Qd3) 14. Kh1 {[%emt 0:06:49]} ({RR} 14. Ne5 Be8 15. a3 g6 16. Qb3 Rb8 17. Rfd1 Nd5 18. Ne4 Kh8 19. Nc5 Rg8 20. Kh1 g5 21. f5 exf5 22. Ncd7 Rc8 23. Bxd5 cxd5 24. Qxb7 Ra8 25. Nc6 Qxd7 26. Qxa8 Qe6 27. Ne5 f4 28. Qc8 Qf6) 14... Be8 {[%emt 0:00:50]} 15. a3 $146 {[%emt 0:01:58]} ({RR} 15. Rg1 Kh8 16. Qf3 Rg8 17. Qh3 Rc8 18. f5 exf5 19. Qxf5 Ra8 20. Rgd1 g6 21. Qe5 Rg7 22. d5 Nd7 23. Qf4 Bg5 24. Qf3 c5 25. Ne4 Bh4 26. Ned6 Rb8 27. Qh3 Bf6 28. Nxa5 Qxa5 29. Nxe8 Rxe8 {Jones,G (2646)-Brunello,S (2511) Budapest HUN 2024 1-0 (58)}) ({RR} 15. Rg1 Kh8 16. Qf3 Rg8 17. Qh3 Rc8 18. f5 exf5 19. Qxf5 Ra8 20. Rgd1 g6 21. Qe5 Rg7 22. d5 Nd7 23. Qf4 Bg5 24. Qf3 c5 25. Ne4 Bh4 26. Ned6 Rb8 27. Qh3 Bf6 28. Nxa5 Qxa5 29. Nxe8 Rxe8 {Jones,G (2646)-Brunello,S (2511) Budapest HUN 2024 1-0 (58)}) 15... Kh8 {[%emt 0:00:28]} 16. Rg1 {[%emt 0:09:21]} Nd5 {[%emt 0:04:54]} 17. Ne4 {[%emt 0:06:00]} Rc8 {[%emt 0:03:40]} 18. Qd2 {[%emt 0:08:41]} b6 {[%emt 0:06:54]} 19. Ng3 {[%emt 0:08:51]} f5 {[%emt 0:08:44]} 20. Ne5 {[%emt 0:01:41]} Bd6 {[%emt 0:01:22]} 21. Rc2 {[%emt 0:08:24]} Bxe5 {[%emt 0:04:36]} 22. fxe5 {[%emt 0:00:10]} (22. dxe5 $11 c5 23. Bxd5 exd5 24. f3) 22... f4 $1 $17 {[%emt 0:00:12]} 23. exf4 {[%emt 0:00:36]} Nxf4 {[%emt 0:05:02]} 24. Be4 {[%emt 0:00:09]} c5 {[%emt 0:06:36]} 25. dxc5 {[%emt 0:03:11] Strongly threatening Qxd8.} Qxd2 {[%emt 0:00:15]} 26. Rxd2 {[%emt 0:00:05]} Rxc5 {[%emt 0:00:03]} 27. f3 {[%emt 0:07:51]} Nh3 {[%emt 0:03:20]} 28. b4 {[%emt 0:02:53]} axb4 {[%emt 0:04:13]} 29. axb4 {[%emt 0:00:05]} Rxe5 {[%emt 0:00:04]} 30. Rc1 {[%emt 0:00:34]} Bg6 {[%emt 0:05:27]} 31. Bxg6 {[%emt 0:08:32]} hxg6 {[%emt 0:00:06]} 32. Rd7 {[%emt 0:01:01] [#]} (32. Re2 $142 Rb5 (32... Rxe2 33. Nxe2 Rxf3 34. Kg2 $17) 33. Rc4) 32... g5 {[%emt 0:02:50]} ({And not} 32... Rxf3 33. Rc8+ Kh7 34. Rdd8 $16) ({Better is} 32... Ng5 $1 33. Rb7 b5 (33... Rxf3 34. Rb8+ Kh7 35. Rc4 $17) (33... Nxf3 $2 34. Rxb6 Kh7 35. Kg2 $17)) 33. Kg2 {[%emt 0:09:19]} (33. Nh5 $17 {was called for.}) 33... Nf4+ $19 {[%emt 0:01:19]} 34. Kg1 {[%emt 0:00:05]} Ra8 {[%emt 0:03:04]} 35. Rc2 {[%emt 0:00:35] Prevents Re2} (35. Kh1 $17) 35... Re3 {[%emt 0:04:04]} 36. Ne4 {[%emt 0:03:24] [#]} g4 {[%emt 0:14:59][%mdl 512]} 37. Ng5 $15 {[%emt 0:00:04]} gxf3 {[%emt 0:00:20]} 38. Rcd2 {[%emt 0:01:44] Dodges Nd3. White threatens Rd8+ and mate.} Rf8 {[%emt 0:12:16]} 39. Kf2 {[%emt 0:00:04][%csl Be3,Bf3]} Rb3 {[%emt 0:00:17]} (39... Re2+ {simplifies} 40. Kxf3 Rxd2 41. Rxd2 Nh3+) 40. Rd8 {[%emt 0:00:47]} Kg8 {[%emt 0:00:12]} 41. R2d6 {[%emt 0:16:11]} b5 {[%emt 0:08:09]} (41... Rxb4 {simplifies} 42. Kxf3 e5 43. Rxf8+ Kxf8 44. Rd7 Nh5) 42. R6d7 {[%emt 0:02:31] Hoping for Rxf8+.} Rxb4 {[%emt 0:02:50]} (42... e5 $1 $15) 43. Kxf3 $11 {[%emt 0:02:02]} e5 {[%emt 0:02:00]} 44. Rxf8+ {[%emt 0:00:33]} Kxf8 {[%emt 0:00:03][%mdl 4096] Endgame. KRN-KRN} 45. Rf7+ $1 {[%emt 0:00:44]} Ke8 {[%emt 0:00:52][%cal Of4e6] And now ...Ne6! would win.} 46. Rxg7 {[%emt 0:00:18]} Nh5 {[%emt 0:00:09]} 47. Rb7 {[%emt 0:04:31]} Nf6 {[%emt 0:00:08]} 48. Rb6 {[%emt 0:01:55]} Nd7 {[%emt 0:04:05]} 49. Re6+ {[%emt 0:00:16] The position is equal.} Kf8 {[%emt 0:00:01]} 50. Nh7+ {[%emt 0:00:58]} Kg8 {[%emt 0:00:51]} 51. Re7 {[%emt 0:00:26]} Rf4+ {[%emt 0:00:45]} 52. Ke3 {[%emt 0:01:03]} Nb6 {[%emt 0:00:20]} 53. Rxe5 {[%emt 0:00:10]} Rh4 {[%emt 0:00:11] Threatens to win with ...Nc4+.} 54. Rh5 {[%emt 0:01:01]} Nc4+ {[%emt 0:00:07]} (54... Rxh5 $5 55. Nf6+ $8 Kf8 56. Nxh5 Ke7 $11) 55. Kd3 {[%emt 0:00:22]} Rxh5 {[%emt 0:00:13] Weighted Error Value: White=0.11 (very precise) /Black=0.11 (very precise) . Mistake: 	White=4 	Black=3 Inaccurate: 	White=2 	Black=2 OK: 	White=19 	Black=22 Best: 	White=4 	Black=1 Strong: 	White=1 	Black=1} 1/2-1/2

[Event "XTX Markets London Classic-Elite 2024"]
[Site "London"]
[Date "2024.12.03"]
[Round "5.3"]
[White "Adams, Michael"]
[Black "Vitiugov, Nikita"]
[Result "1/2-1/2"]
[WhiteElo "2662"]
[BlackElo "2668"]
[Annotator "TA"]
[PlyCount "61"]
[EventDate "2024.??.??"]
[TimeControl "60"]

{[%evp 9,61,7,19,0,0,0,4,0,0,0,0,0,0,0,0,0,19,0,0,0,0,0,12,0,0,-30,0,0,0,-13,-11,-10,-10,-8,0,0,0,0,0,0,0,0,0,0,0,0,0,0,0,0,0,0,0,0]} 1. e4 {[%emt 0:00:03]} e5 {[%emt 0:00:20]} 2. Nf3 {[%emt 0:00:11]} Nc6 {[%emt 0:00:06]} 3. Bc4 {[%emt 0:00:10]} Bc5 {[%emt 0:00:34]} 4. d3 {[%emt 0:00:12]} Nf6 {[%emt 0:00:07]} 5. Nc3 {[%emt 0:00:05]} a6 {[%emt 0:01:13]} 6. Be3 {[%emt 0:03:19]} Bxe3 {[%emt 0:04:33]} 7. fxe3 {[%emt 0:00:07]} d6 {[%emt 0:00:08]} 8. a4 {[%emt 0:02:18]} O-O {[%emt 0:01:18]} 9. O-O {[%emt 0:00:15]} Be6 {[%emt 0:00:19]} 10. Nd2 {[%emt 0:07:17]} Na5 $146 {[%emt 0:03:23]} ({RR} 10... Ne7 11. a5 Ng6 12. Qf3 Qe7 13. d4 c6 14. Bxe6 fxe6 15. Qg3 exd4 16. exd4 e5 17. dxe5 dxe5 18. h3 Nh5 19. Qe3 Nhf4 20. Nf3 h6 21. Rad1 Qe6 22. Rd2 Rf6 23. Na4 Qe7 24. Nc5 Ne6 25. Nxe6 {Lamaze,S (2388)-Can,I (2512) Purtichju FRA 2023 ½-½ (58)}) ({RR} 10... Nb4 11. h3 Qd7 12. a5 Rad8 13. Rf2 d5 14. exd5 Nfxd5 15. Bxd5 Nxd5 16. e4 Nxc3 17. bxc3 Qc6 18. c4 b5 19. axb6 Qxb6 20. Qb1 Qa7 21. Qa2 Rd6 22. Qa5 f6 23. Nb3 Rc6 24. Qe1 f5 25. Kh2 {Migot,T (2326)-Degraeve,R (2432) Chartres FRA 2024 ½-½ (45)}) 11. Bd5 {[%emt 0:04:10]} Nc6 {[%emt 0:06:01]} 12. a5 {[%emt 0:09:53]} Ne7 {[%emt 0:08:39]} 13. Bxe6 {[%emt 0:08:06]} fxe6 {[%emt 0:00:06]} 14. d4 {[%emt 0:01:47]} Ng6 {[%emt 0:04:21]} 15. Qe2 {[%emt 0:02:27]} d5 {[%emt 0:12:16]} 16. Rad1 {[%emt 0:13:15]} Qe7 {[%emt 0:07:17]} 17. Nf3 {[%emt 0:05:07]} Nxe4 {[%emt 0:05:27]} 18. Nxe4 {[%emt 0:00:05] The position is equal.} dxe4 {[%emt 0:00:04]} 19. Nxe5 {[%emt 0:05:33]} Nxe5 {[%emt 0:02:13]} 20. dxe5 {[%emt 0:00:02]} Qc5 {[%emt 0:00:32][%csl Ba5,Be5]} 21. Qd2 {[%emt 0:02:37]} (21. Qg4 {is interesting.} Qxe3+ 22. Kh1 Qh6 23. Qxe4 Rxf1+ 24. Rxf1 Rf8 25. Rg1) 21... Rxf1+ {[%emt 0:17:25]} 22. Rxf1 {[%emt 0:00:33]} Rf8 {[%emt 0:00:27]} 23. Rxf8+ {[%emt 0:05:54]} Kxf8 $11 {[%emt 0:00:27][%mdl 4096] Endgame. KQ-KQ} 24. Qd8+ {[%emt 0:00:36]} Kf7 {[%emt 0:00:04]} 25. Qd7+ {[%emt 0:00:11]} Kf8 {[%emt 0:00:52]} 26. Qd8+ {[%emt 0:00:08]} Kf7 {[%emt 0:00:05]} 27. Qd7+ {[%emt 0:00:04]} Kf8 {[%emt 0:00:33]} 28. Qd8+ {[%emt 0:01:04]} Kf7 {[%emt 0:00:05]} 29. Qd7+ {[%emt 0:00:03]} Kf8 {[%emt 0:00:04]} 30. Qd8+ {[%emt 0:00:03]} Kf7 {[%emt 0:00:04]} 31. Qd7+ {[%emt 0:30:25] Not much happened in this game. Weighted Error Value: White=0.05 (flawless) /Black=0.05 (flawless) . Inaccurate: 	White=1 	Black=1 OK: 	White=13 	Black=9 Best: 	--- 	Black=1} 1/2-1/2